bitfinex/quotes_SOLUSD_20250310
["timestamp","ask_amount","ask_price","bid_price","bid_amount"]
[1741598558056,0.14216157,130.91,130.76,18.933972]
[1741598558256,0.14216157,130.91,130.75,3.14629122]
[1741598558257,64.53567174,130.87,130.75,1.14629122]
[1741598558470,18.933972,130.91,130.74,24.84101043]
[1741598558777,64.53567174,130.84,130.77,64.53567174]
[1741598559074,64.53567174,130.83,130.77,64.53567174]
[1741598559256,64.53567174,130.82,130.76,64.53567174]
[1741598559556,64.53567174,130.82,130.67,23.005758]
[1741598559557,64.53567174,130.78,130.67,23.005758]
[1741598559751,64.53567174,130.76,130.67,23.005758]
[1741598559951,0.14216157,130.79,130.74,64.53567174]
[1741598560169,0.14216157,130.79,130.62,64.53567174]
[1741598560767,0.28432314,130.8,130.61,7.76263598]
[1741598560958,0.28432314,130.8,130.58,50.0]
[1741598560959,18.933972,130.78,130.59,0.14216157]
[1741598561176,18.933972,130.78,130.57,110.09211524]
[1741598561177,64.53567174,130.71,130.64,64.53567174]
[1741598561368,64.53567174,130.7,130.64,64.53567174]
[1741598561560,64.53567174,130.69,130.57,85.06926524]
[1741598561767,72.18637174,130.71,130.65,64.53567174]
[1741598561960,7.6507,130.71,130.65,64.53567174]
[1741598562166,7.79196157,130.73,130.67,64.53567174]
[1741598562362,7.647,130.77,130.72,64.53567174]
[1741598562677,73.81127174,130.79,130.73,9.41949343]
[1741598562979,0.14216157,130.78,130.69,64.53567174]
[1741598563276,0.14216157,130.78,130.64,1.14740142]
[1741598563277,64.53567174,130.78,130.64,1.14740142]
[1741598563575,0.14216157,130.77,130.7,64.53567174]
[1741598563779,64.53567174,130.75,130.62,64.53567174]
[1741598563981,64.53567174,130.73,130.66,64.53567174]
[1741598564280,64.53567174,130.73,130.67,64.53567174]
[1741598564583,72.17987174,130.82,130.72,64.53567174]
[1741598564764,7.6447,130.81,130.64,18.79181043]
[1741598564954,1.8917237,130.79,130.74,64.53567174]
[1741598565156,1.8917237,130.79,130.64,1.28954372]
[1741598565157,83.46964374,130.78,130.71,64.53567174]
[1741598565374,83.46964374,130.78,130.64,1.14738215]
[1741598565375,18.933972,130.78,130.64,1.14765983]
[1741598565589,64.53567174,130.75,130.62,64.53567174]
[1741598565780,18.64964886,130.74,130.62,64.53567174]
[1741598565979,18.64964886,130.73,130.62,64.53567174]
[1741598566152,0.14216157,130.7,130.66,64.53567174]
[1741598566353,7.6464,130.78,130.68,64.53567174]
[1741598566573,0.28432314,130.77,130.71,64.53567174]
[1741598566862,1.8917237,130.79,130.74,64.53567174]
[1741598567193,1.8917237,130.79,130.69,64.53567174]
[1741598567481,1.8917237,130.79,130.77,64.53567174]
[1741598567665,1.8917237,130.79,130.76,64.53567174]
[1741598567869,1.8917237,130.79,130.69,64.53567174]
[1741598568055,1.8917237,130.79,130.72,20.0]
[1741598568459,1.8917237,130.79,130.78,64.53567174]
[1741598569965,1.8917237,130.79,130.7,7.651]
[1741598570167,1.8917237,130.79,130.72,20.0]
[1741598570370,1.8917237,130.79,130.77,64.53567174]
[1741598570584,1.8917237,130.79,130.78,64.53567174]
[1741598570986,1.8917237,130.79,130.77,64.53567174]
[1741598571185,1.8917237,130.79,130.75,64.53567174]
[1741598571599,1.8917237,130.79,130.69,64.53567174]
[1741598571790,1.8917237,130.79,130.77,64.53567174]
[1741598571972,1.8917237,130.79,130.78,64.53567174]
[1741598575198,2.5121113,130.83,130.78,64.53567174]
[1741598575396,2.5121113,130.83,130.82,64.53567174]
[1741598575601,6.2968,130.96,130.82,441.07134348]
[1741598575895,18.933972,130.95,130.89,64.53567174]
[1741598576095,0.14216157,130.93,130.88,64.53567174]
[1741598576299,0.14216157,130.93,130.82,20.0]
[1741598576605,0.14216157,130.93,130.89,64.53567174]
[1741598576791,7.77876157,130.95,130.9,64.53567174]
[1741598576980,0.14216157,130.95,130.91,64.53567174]
[1741598577173,1.6154,130.98,130.94,64.53567174]
[1741598577477,9.2502,130.98,130.95,64.53567174]
[1741598577681,9.2502,130.98,130.9,64.53567174]
[1741598577682,9.2502,130.98,130.94,64.53567174]
[1741598577990,1.6154,130.98,130.95,64.53567174]
[1741598578195,1.6154,130.98,130.94,64.53567174]
[1741598578382,9.2501,130.98,130.94,64.53567174]
[1741598578579,1.6154,130.98,130.94,64.53567174]
[1741598578800,9.2501,130.98,130.9,64.53567174]
[1741598579001,9.2501,130.98,130.9,312.0]
[1741598579197,83.46964374,130.97,130.9,64.53567174]
[1741598579416,18.933972,130.94,130.89,64.53567174]
[1741598579601,83.46964374,130.94,130.88,64.53567174]
[1741598579803,0.14216157,130.91,130.82,182.12]
[1741598579988,72.31693331,130.91,130.85,64.53567174]
[1741598580191,0.14216157,130.9,130.85,64.53567174]
[1741598580387,0.14216157,130.87,130.76,70.80207174]
[1741598580707,26.7323,130.93,130.86,64.53567174]
[1741598580908,26.7323,130.93,130.88,64.53567174]
[1741598580909,7.6382,130.93,130.88,64.53567174]
[1741598581101,0.14216157,130.92,130.79,1.14615864]
[1741598581300,0.14216157,130.89,130.79,20.0]
[1741598581511,64.67783331,130.89,130.79,20.0]
[1741598581691,18.79181043,130.89,130.83,64.53567174]
[1741598581892,64.67783331,130.88,130.76,70.80207174]
[1741598582101,7.78326157,130.87,130.82,64.53567174]
[1741598582283,0.14216157,130.86,130.82,64.53567174]
[1741598582490,83.46964374,130.86,130.79,64.53567174]
[1741598582811,0.14216157,130.8,130.75,0.063]
[1741598582975,1.5113,130.86,130.78,64.53567174]
[1741598583177,18.933972,130.85,130.75,0.063]
[1741598583731,1.5844,130.93,130.82,0.14216157]
[1741598583898,7.6353,130.97,130.92,64.53567174]
[1741598584224,64.67783331,130.95,130.89,64.53567174]
[1741598584422,64.67783331,130.95,130.79,20.0]
[1741598584423,18.79181043,130.94,130.79,20.0]
[1741598584722,0.14216157,130.93,130.79,20.0]
[1741598585113,18.79181043,130.88,130.75,0.063]
[1741598585316,18.933972,130.88,130.75,20.063]
[1741598585502,83.46964374,130.88,130.82,64.53567174]
[1741598585707,2.14216157,130.96,130.85,64.53567174]
[1741598585928,64.53567174,130.93,130.87,64.53567174]
[1741598586224,0.14216157,130.91,130.87,64.53567174]
[1741598586423,0.14216157,130.91,130.76,64.53567174]
[1741598586424,0.14216157,130.9,130.76,64.53567174]
[1741598586726,20.0,130.91,130.79,20.0]
[1741598586924,0.28432314,130.93,130.76,64.53567174]
[1741598587131,0.14216157,130.88,130.76,64.53567174]
[1741598587440,18.933972,130.88,130.83,64.53567174]
[1741598587631,85.00874374,130.88,130.76,64.53567174]
[1741598587795,0.14216157,130.82,130.75,0.063]
[1741598588140,26.7562,130.81,130.75,0.063]
[1741598588423,7.6365,130.95,130.82,2.0]
[1741598588609,6.4093,131.05,130.94,64.53567174]
[1741598588610,7.6341,130.99,130.94,64.53567174]
[1741598588808,1.5356,131.04,130.98,64.53567174]
[1741598589008,6.4093,131.08,131.01,64.53567174]
[1741598589009,26.7032,131.07,131.01,64.53567174]
[1741598589201,7.6295,131.07,130.97,64.53567174]
[1741598589402,2.5121113,131.09,131.01,20.0]
[1741598589606,10.1406113,131.09,131.05,64.53567174]
[1741598590025,10.1406113,131.09,131.06,64.53567174]
[1741598590527,10.1406113,131.09,131.08,64.53567174]
[1741598590528,2.5121113,131.09,131.08,64.53567174]
[1741598590728,2.5121113,131.09,131.08,65.67958337]
[1741598590901,2.5121113,131.09,131.08,64.53567174]
[1741598591118,2.5121113,131.09,131.0,182.02]
[1741598591302,2.5121113,131.09,131.08,64.53567174]
[1741598591633,10.1404113,131.09,131.0,182.02]
[1741598591802,10.1404113,131.09,130.97,64.53567174]
[1741598592002,64.53567174,131.08,131.02,64.53567174]
[1741598592207,10.1404113,131.09,131.03,64.53567174]
[1741598592433,2.5121113,131.09,131.07,64.53567174]
[1741598592628,10.1409113,131.09,131.05,64.53567174]
[1741598592805,74.67658304,131.09,131.02,64.53567174]
[1741598593006,64.67783331,131.08,131.02,64.53567174]
[1741598593200,20.28432314,131.05,130.9,246.55567174]
[1741598593410,64.53567174,131.01,130.94,64.53567174]
[1741598593609,64.53567174,130.99,130.93,64.53567174]
[1741598593902,64.67783331,130.99,130.92,64.53567174]
[1741598594110,45.37324886,130.97,130.84,22.975904]
[1741598594334,0.14216157,130.96,130.83,0.063]
[1741598594635,1.5243,130.98,130.87,2.14216157]
[1741598594815,7.6306,131.05,130.91,20.0]
[1741598595022,0.14216157,131.04,130.92,1.14499014]
[1741598595223,64.53567174,131.0,130.91,20.0]
[1741598595535,26.7072,131.05,130.93,312.0]
[1741598595741,26.7072,131.05,130.98,64.53567174]
[1741598595944,64.53567174,131.01,130.93,312.0]
[1741598596111,64.53567174,131.01,130.9,64.53567174]
[1741598596112,1.5243,131.06,130.99,64.53567174]
[1741598596305,7.6306,131.05,130.99,64.53567174]
[1741598596511,64.53567174,131.02,130.96,64.53567174]
[1741598596823,64.53567174,131.03,130.96,64.53567174]
[1741598597032,64.53567174,131.02,130.95,64.53567174]
[1741598597343,26.7072,131.05,130.89,18.933972]
[1741598597510,91.24287174,131.05,130.98,64.53567174]
[1741598597711,91.24287174,131.05,130.99,64.53567174]
[1741598597933,91.24287174,131.05,130.98,64.53567174]
[1741598598143,7.6306,131.05,131.0,64.53567174]
[1741598598306,19.0727,131.08,130.98,1.14459001]
[1741598598307,7.6289,131.08,130.98,1.14459001]
[1741598598513,7.6289,131.08,131.04,64.53567174]
[1741598598737,7.6235,131.18,131.08,0.28432314]
[1741598598937,7.6235,131.18,131.15,64.53567174]
[1741598599142,64.53567174,131.17,131.11,312.0]
[1741598599431,0.14216157,131.17,131.03,181.88]
[1741598599635,64.53567174,131.1,131.04,64.53567174]
[1741598599852,18.64964886,131.14,130.97,18.64964886]
[1741598599853,0.28432314,131.13,131.02,64.53567174]
[1741598600054,64.53567174,131.06,131.0,64.53567174]
[1741598600361,64.53567174,131.06,130.99,64.53567174]
[1741598600566,91.23887174,131.07,131.01,64.53567174]
[1741598600863,7.6295,131.07,131.0,64.53567174]
[1741598601071,64.53567174,131.05,130.99,64.53567174]
[1741598601244,26.7032,131.07,130.94,19.79451169]
[1741598601454,64.53567174,131.06,131.0,64.53567174]
[1741598601642,72.16517174,131.07,131.01,64.53567174]
[1741598601842,72.16517174,131.07,130.97,64.53567174]
[1741598601843,7.6295,131.07,130.97,65.6802565]
[1741598602044,64.53567174,131.06,131.0,64.53567174]
[1741598602343,64.53567174,131.06,130.93,181.88]
[1741598602344,64.53567174,131.03,130.93,181.88]
[1741598602560,64.53567174,131.02,130.96,64.53567174]
[1741598602962,64.53567174,131.03,130.97,64.53567174]
[1741598603167,26.7032,131.07,130.99,64.53567174]
[1741598603168,64.53567174,131.05,130.99,64.53567174]
[1741598603374,7.6295,131.07,131.01,64.53567174]
[1741598603880,7.6283,131.09,131.03,64.53567174]
[1741598604089,64.53567174,131.07,131.0,64.53567174]
[1741598604386,64.53567174,131.07,130.97,65.68048483]
[1741598604555,64.53567174,131.07,131.01,64.53567174]
[1741598604963,72.16457174,131.08,131.02,64.53567174]
[1741598605168,7.6289,131.08,131.03,64.53567174]
[1741598605490,64.53567174,131.08,131.03,312.0]
[1741598605652,64.53567174,131.06,130.96,20.0]
[1741598605857,0.14216157,131.07,130.97,64.53567174]
[1741598606059,0.14216157,131.04,130.93,181.88]
[1741598606277,64.53567174,130.98,130.87,23.25608014]
[1741598606476,64.53567174,130.98,130.88,1.14538705]
[1741598606792,0.14216157,131.04,130.94,64.53567174]
[1741598607080,64.53567174,131.02,130.94,20.0]
[1741598607282,7.63,131.06,130.99,64.53567174]
[1741598607484,72.16567174,131.06,130.96,20.0]
[1741598608185,72.16517174,131.07,130.97,65.68039146]
[1741598608485,0.03,131.18,131.06,64.53567174]
[1741598608707,64.53567174,131.16,131.1,64.53567174]
[1741598608873,0.03,131.18,131.13,64.53567174]
[1741598609482,0.03,131.18,131.15,64.53567174]
[1741598609662,0.03,131.18,131.17,64.53567174]
[1741598609858,0.03,131.18,131.08,0.14216157]
[1741598610067,74.53567174,131.2,131.08,1.14356275]
[1741598610396,10.0,131.2,131.13,20.14216157]
[1741598610577,10.0,131.2,131.18,64.53567174]
[1741598610889,10.0,131.2,131.11,65.67894903]
[1741598611091,10.0,131.2,131.14,20.0]
[1741598611294,10.0,131.2,131.19,64.53567174]
[1741598611481,10.0,131.2,131.18,64.53567174]
[1741598611795,10.0,131.2,131.15,64.53567174]
[1741598611997,10.0,131.2,131.18,64.53567174]
[1741598612465,10.0,131.2,131.17,64.53567174]
[1741598612665,10.0,131.2,131.16,64.53567174]
[1741598612868,10.0,131.2,131.19,64.53567174]
[1741598613285,10.0,131.2,131.12,1.14296826]
[1741598613585,10.0,131.2,131.16,64.53567174]
[1741598613784,10.0,131.2,131.17,64.53567174]
[1741598613996,10.0,131.2,131.15,64.53567174]
[1741598614183,17.6219,131.2,131.08,1.14349296]
[1741598614369,64.53567174,131.17,131.06,0.28432314]
[1741598614567,7.6231,131.18,131.08,0.28432314]
[1741598614871,7.6225,131.19,131.14,64.53567174]
[1741598615088,10.0,131.2,131.16,64.53567174]
[1741598615289,10.0,131.2,131.11,64.53567174]
[1741598615290,17.6519,131.2,131.11,65.67895996]
[1741598615497,17.6521,131.2,131.12,0.14216157]
[1741598615808,10.03,131.2,131.18,64.53567174]
[1741598615987,10.03,131.2,131.18,312.0]
[1741598616183,10.03,131.2,131.18,376.53567174]
[1741598616383,10.03,131.2,131.18,64.53567174]
[1741598616887,10.03,131.2,131.16,20.0]
[1741598617196,10.03,131.2,131.18,64.53567174]
[1741598617396,10.03,131.2,131.16,64.53567174]
[1741598617607,10.03,131.2,131.12,7.6264]
[1741598617608,10.03,131.2,131.15,20.0]
[1741598617773,10.03,131.2,131.14,0.14216157]
[1741598617969,10.03,131.2,131.17,64.53567174]
[1741598617970,17.652,131.2,131.17,64.53567174]
[1741598618399,17.652,131.2,131.16,64.53567174]
[1741598620674,17.652,131.2,131.11,376.67783331]
[1741598620880,36.7068,131.2,131.08,0.063]
[1741598621221,101.24247174,131.2,131.14,64.53567174]
[1741598621408,64.53567174,131.19,131.13,64.53567174]
[1741598621596,36.7068,131.2,131.14,64.53567174]
[1741598621901,64.53567174,131.17,131.11,64.53567174]
[1741598622101,74.8165,131.2,131.13,64.53567174]
[1741598622399,64.53567174,131.16,131.08,0.063]
[1741598622596,64.53567174,131.14,131.09,64.53567174]
[1741598622796,1.6257,131.16,131.09,64.53567174]
[1741598623108,1.6257,131.16,131.08,1.20684403]
[1741598623311,1.6257,131.16,131.08,23.003618]
[1741598623481,66.16137174,131.16,131.1,64.53567174]
[1741598623683,64.53567174,131.13,131.08,0.063]
[1741598623889,64.53567174,131.12,131.08,0.063]
[1741598624090,18.64964886,131.15,131.08,0.063]
[1741598624407,26.6931,131.12,131.08,64.59867174]
[1741598624584,7.6266,131.12,131.11,64.53567174]
[1741598624785,7.6254,131.14,131.11,64.53567174]
[1741598625108,7.6254,131.14,131.12,64.53567174]
[1741598625288,7.6254,131.14,131.08,0.063]
[1741598625498,7.6254,131.14,131.11,64.53567174]
[1741598625812,7.625,131.15,131.12,64.53567174]
[1741598626106,9.2501,131.16,131.09,21.14366059]
[1741598626308,83.59197174,131.19,131.15,64.53567174]
[1741598626309,7.6225,131.19,131.15,64.53567174]
[1741598626516,64.53567174,131.17,131.08,0.063]
[1741598626716,0.14216157,131.16,131.08,64.59867174]
[1741598627007,0.14216157,131.16,131.08,0.063]
[1741598627008,64.53567174,131.13,131.08,0.063]
[1741598627218,64.53567174,131.14,131.08,64.59867174]
[1741598627383,64.53567174,131.13,131.08,0.063]
[1741598627583,0.14216157,131.18,131.08,0.063]
[1741598627798,64.53567174,131.15,131.08,0.063]
[1741598628006,64.53567174,131.16,131.1,64.53567174]
[1741598628313,64.53567174,131.17,131.11,64.53567174]
[1741598628609,19.0606,131.16,131.1,64.53567174]
[1741598628820,83.59627174,131.16,131.1,64.53567174]
[1741598628991,102.2459206,131.16,131.08,0.063]
[1741598629327,7.6236,131.17,131.13,64.53567174]
[1741598629615,91.21847174,131.17,131.11,64.53567174]
[1741598629909,64.53567174,131.15,131.09,64.53567174]
[1741598630111,64.53567174,131.14,131.08,64.59867174]
[1741598630411,7.6231,131.18,131.09,20.0]
[1741598630631,10.03,131.2,131.1,21.42795212]
[1741598630914,10.03,131.2,131.19,64.53567174]
[1741598631117,10.03,131.2,131.19,376.53567174]
[1741598631307,10.03,131.2,131.19,312.0]
[1741598631489,10.03,131.2,131.19,376.53567174]
[1741598631806,10.03,131.2,131.19,312.0]
[1741598632395,10.03,131.2,131.19,376.53567174]
[1741598632802,9.53,131.2,131.19,312.0]
[1741598633426,9.53,131.2,131.19,376.53567174]
[1741598633603,9.53,131.2,131.19,384.44249488]
[1741598633912,9.1662,131.29,131.22,20.0]
[1741598634291,92.74367174,131.29,131.21,20.0]
[1741598634509,92.74367174,131.29,131.23,64.53567174]
[1741598634698,92.74367174,131.29,131.21,20.0]
[1741598634897,92.74367174,131.29,131.23,64.53567174]
[1741598635118,7.6144,131.33,131.21,20.14216157]
[1741598635290,72.15007174,131.33,131.27,64.53567174]
[1741598635697,91.18607174,131.33,131.27,64.53567174]
[1741598635908,64.53567174,131.32,131.26,64.53567174]
[1741598636083,26.6504,131.33,131.26,64.53567174]
[1741598636282,7.6144,131.33,131.28,64.53567174]
[1741598636493,64.53567174,131.32,131.22,0.14216157]
[1741598636713,26.6504,131.33,131.28,64.53567174]
[1741598636920,7.6144,131.33,131.28,64.53567174]
[1741598637086,7.6144,131.33,131.26,312.0]
[1741598637295,7.6144,131.33,131.29,64.53567174]
[1741598637705,7.6144,131.33,131.28,64.53567174]
[1741598637706,26.6504,131.33,131.28,64.53567174]
[1741598638018,7.6144,131.33,131.25,64.53567174]
[1741598638197,26.6504,131.33,131.29,64.53567174]
[1741598638401,26.6504,131.33,131.23,21.14224166]
[1741598638597,26.6504,131.33,131.28,64.53567174]
[1741598638909,26.6504,131.33,131.29,64.53567174]
[1741598639217,64.53567174,131.32,131.27,64.53567174]
[1741598639421,91.18607174,131.33,131.27,64.53567174]
[1741598639592,7.6144,131.33,131.25,64.53567174]
[1741598639795,2.5121113,131.34,131.32,129.07134348]
[1741598640100,2.5121113,131.34,131.27,18.79181043]
[1741598640101,10.1559113,131.34,131.33,64.53567174]
[1741598640406,10.1559113,131.34,131.28,1.14174077]
[1741598640407,10.1559113,131.34,131.3,312.0]
[1741598640615,10.1559113,131.34,131.3,376.53567174]
[1741598640825,64.53567174,131.33,131.21,7.6213]
[1741598641032,29.1904113,131.34,131.27,64.53567174]
[1741598641240,29.1904113,131.34,131.23,0.14216157]
[1741598641241,64.53567174,131.33,131.23,0.14216157]
[1741598641531,0.14216157,131.37,131.29,64.53567174]
[1741598641723,60.48008017,131.39,131.29,64.53567174]
[1741598641894,64.53567174,131.39,131.33,64.53567174]
[1741598642093,64.53567174,131.46,131.37,64.53567174]
[1741598642295,1.693,131.47,131.33,0.14216157]
[1741598642540,1.693,131.47,131.41,64.53567174]
[1741598642849,7.6068,131.46,131.41,64.53567174]
[1741598643137,7.6068,131.46,131.42,64.53567174]
[1741598643338,1.663,131.47,131.42,20.0]
[1741598643339,0.02,131.47,131.42,20.0]
[1741598643512,0.02,131.47,131.45,64.53567174]
[1741598643841,0.02,131.47,131.43,64.53567174]
[1741598643842,7.6264,131.47,131.43,64.53567174]
[1741598644140,0.02,131.47,131.46,64.53567174]
[1741598644936,0.02,131.47,131.46,129.07134348]
[1741598645136,0.02,131.47,131.46,84.82292204]
[1741598645341,11.70317785,131.53,131.52,82.82292204]
[1741598645517,23.4063557,131.54,131.53,18.79181043]
[1741598645708,72.73117842,131.6,131.53,18.79181043]
[1741598645709,72.73117842,131.6,131.56,20.14216157]
[1741598645910,72.73117842,131.6,131.56,102.82292204]
[1741598646111,72.73117842,131.6,131.56,84.03111161]
[1741598646411,72.73117842,131.6,131.56,83.88895004]
[1741598646615,0.81271141,131.57,131.56,63.88895004]
[1741598646824,0.81271141,131.57,131.49,50.0]
[1741598647024,0.81271141,131.57,131.5,1.13976106]
[1741598647228,8.41321141,131.57,131.5,1.13976106]
[1741598647407,63.88895004,131.55,131.46,1.39097172]
[1741598647613,63.88895004,131.53,131.4,56.6036]
[1741598647817,26.6017,131.57,131.49,63.88895004]
[1741598648024,63.88895004,131.53,131.41,1.14051023]
[1741598648235,63.88895004,131.48,131.43,63.88895004]
[1741598648541,63.88895004,131.48,131.39,1.14054535]
[1741598648760,63.88895004,131.43,131.38,63.88895004]
[1741598649046,2.0,131.46,131.26,56.0324]
[1741598649244,20.0,131.44,131.35,63.88895004]
[1741598649548,20.0,131.47,131.31,1.14174842]
[1741598649725,20.0,131.47,131.29,2.0]
[1741598649726,63.88895004,131.39,131.34,63.88895004]
[1741598649936,63.88895004,131.35,131.29,20.0]
[1741598650249,0.14216157,131.4,131.28,63.88895004]
[1741598650414,63.88895004,131.33,131.27,63.88895004]
[1741598650748,26.6382,131.39,131.27,20.0]
[1741598650917,26.6159,131.5,131.38,63.88895004]
[1741598651275,26.6159,131.5,131.41,63.88895004]
[1741598651276,63.88895004,131.47,131.41,63.88895004]
[1741598651552,7.6045,131.5,131.41,0.28432314]
[1741598651711,7.6045,131.5,131.48,63.88895004]
[1741598651910,63.88895004,131.49,131.42,63.88895004]
[1741598652111,26.6159,131.5,131.41,20.0]
[1741598652347,1.5894,131.51,131.42,18.933972]
[1741598652651,9.1934,131.51,131.42,1.14051202]
[1741598652948,9.1934,131.51,131.42,63.88895004]
[1741598652949,63.88895004,131.48,131.42,63.88895004]
[1741598653149,9.1934,131.51,131.46,63.88895004]
[1741598653641,63.88895004,131.48,131.42,375.88895004]
[1741598653848,9.1934,131.51,131.45,63.88895004]
[1741598654155,26.5997,131.58,131.5,63.88895004]
[1741598654451,7.5999,131.58,131.53,63.88895004]
[1741598654613,1.6622,131.59,131.53,63.88895004]
[1741598654814,73.15075004,131.59,131.51,1.14019715]
[1741598655068,2.5121113,131.6,131.54,18.64964886]
[1741598655267,2.5121113,131.6,131.59,63.88895004]
[1741598655565,6.0576,131.76,131.6,2.0]
[1741598655566,18.9785,131.73,131.6,2.0]
[1741598655751,63.88895004,131.73,131.67,63.88895004]
[1741598655948,63.88895004,131.7,131.63,1.13870895]
[1741598656247,26.5654,131.75,131.62,19.78857229]
[1741598656454,63.88895004,131.67,131.6,38.79181043]
[1741598656649,26.5694,131.73,131.61,21.13909272]
[1741598656972,63.88895004,131.7,131.62,18.933972]
[1741598657181,26.5694,131.73,131.62,18.79181043]
[1741598657338,26.5694,131.73,131.64,63.88895004]
[1741598657540,7.5901,131.75,131.7,63.88895004]
[1741598657744,1.5443,131.76,131.7,63.88895004]
[1741598657745,73.02275004,131.76,131.7,63.88895004]
[1741598658044,9.1338,131.76,131.67,63.88895004]
[1741598658247,63.88895004,131.75,131.69,63.88895004]
[1741598658458,63.88895004,131.72,131.66,63.88895004]
[1741598658642,63.88895004,131.72,131.67,63.88895004]
[1741598658977,7.5912,131.73,131.64,63.88895004]
[1741598658978,26.5694,131.73,131.64,63.88895004]
[1741598659172,63.88895004,131.7,131.64,63.88895004]
[1741598659346,26.5694,131.73,131.65,63.88895004]
[1741598659662,26.5694,131.73,131.62,63.88895004]
[1741598659867,63.88895004,131.71,131.65,63.88895004]
[1741598660039,1.5443,131.76,131.68,2.0]
[1741598660246,7.5884,131.79,131.69,1.13817652]
[1741598660475,7.5884,131.79,131.73,63.88895004]
[1741598660773,63.88895004,131.81,131.71,63.88895004]
[1741598660980,18.9657,131.82,131.73,63.88895004]
[1741598661299,7.5855,131.83,131.73,63.88895004]
[1741598661300,7.5855,131.83,131.74,1.13789099]
[1741598661454,4.0615113,131.85,131.74,1.13789099]
[1741598661455,7.5849,131.84,131.79,63.88895004]
[1741598661669,63.88895004,131.8,131.67,65.88895004]
[1741598661863,63.88895004,131.8,131.54,37.00118619]
[1741598661864,26.5472,131.84,131.74,20.14216157]
[1741598662170,2.5121113,131.85,131.77,18.933972]
[1741598662348,2.5121113,131.85,131.78,1.13719888]
[1741598662567,9.5965113,131.85,131.76,20.0]
[1741598662762,9.5965113,131.85,131.77,1.13758707]
[1741598663090,20.5847,131.93,131.83,20.0]
[1741598663257,63.88895004,131.9,131.84,63.88895004]
[1741598663463,20.0,131.89,131.79,18.79181043]
[1741598663683,63.88895004,131.88,131.8,1.13738351]
[1741598663859,63.88895004,131.88,131.78,1.13738351]
[1741598664061,64.4328,131.92,131.8,312.0]
[1741598664370,20.0,131.89,131.74,50.0]
[1741598664567,63.88895004,131.81,131.75,65.02643784]
[1741598664786,102.3345,131.92,131.75,1.1374878]
[1741598664787,63.88895004,131.82,131.75,1.1374878]
[1741598664989,1.6190111,131.82,131.75,1.1374878]
[1741598665199,1.6190111,131.82,131.74,22.824817]
[1741598665375,63.88895004,131.81,131.72,63.88895004]
[1741598665576,63.88895004,131.81,131.7,181.06]
[1741598665759,63.88895004,131.81,131.65,56.2442]
[1741598665760,63.88895004,131.81,131.68,18.649649]
[1741598665963,63.88895004,131.73,131.66,1.13845211]
[1741598666275,0.14216157,131.77,131.64,23.98038116]
[1741598666478,63.88895004,131.7,131.64,23.98038116]
[1741598666684,63.88895004,131.68,131.62,63.88895004]
[1741598666860,1.6304,131.78,131.65,63.88895004]
[1741598667062,63.88895004,131.68,131.62,63.88895004]
[1741598667275,63.88895004,131.65,131.6,180.86]
[1741598667991,63.88895004,131.62,131.53,0.063]
[1741598668192,1.5055,131.63,131.53,0.063]
[1741598668494,63.88895004,131.6,131.53,0.063]
[1741598668691,1.5055,131.63,131.53,21.20299994]
[1741598668893,9.1026,131.63,131.53,1.20299994]
[1741598669097,20.0,131.59,131.53,0.063]
[1741598669273,20.14216157,131.6,131.53,0.063]
[1741598669593,2.0,131.56,131.4,0.063]
[1741598669897,63.88895004,131.47,131.4,0.063]
[1741598670198,63.88895004,131.48,131.4,0.063]
[1741598670358,2.0,131.59,131.41,63.88895004]
[1741598670667,66.0804,131.63,131.51,63.88895004]
[1741598670869,66.0804,131.63,131.46,18.79181043]
[1741598670870,63.88895004,131.56,131.5,63.88895004]
[1741598671060,63.88895004,131.53,131.45,18.64964886]
[1741598671261,2.0,131.6,131.42,1.39139509]
[1741598671262,63.88895004,131.5,131.43,18.64964886]
[1741598671463,63.88895004,131.49,131.42,63.88895004]
[1741598671661,63.88895004,131.45,131.41,180.94]
[1741598671860,2.0,131.59,131.41,180.94]
[1741598672095,20.0,131.49,131.42,1.14060779]
[1741598672276,20.0,131.55,131.42,1.14113162]
[1741598672481,2.0,131.62,131.47,63.88895004]
[1741598672663,9.1026,131.63,131.5,20.0]
[1741598672865,9.1026,131.63,131.48,1.28248536]
[1741598672866,63.88895004,131.57,131.51,63.88895004]
[1741598673192,1.5055,131.63,131.56,63.88895004]
[1741598673396,1.5055,131.63,131.58,63.88895004]